[Event "Titled Tuesday Blitz August 08 Early 2023"]
[White "Kaminski, Victor"]
[Black "Brunner, Nicolas"]
[WhiteFideId "1131630"]
[BlackFideId "620246"]
[WhiteElo "2315"]
[BlackElo "2485"]
[Result "0-1"]
[Round "4"]
[TimeControl "180+1"]
[Date "2023.08.08"]
[WhiteClock "0:00:00"]
[BlackClock "0:00:09"]
[Board "189"]

1. e4 {[%clk 0:03:00]}  e5 {[%clk 0:02:59]} 2. Nf3 {[%clk 0:03:00]}  Nf6 {[%clk 0:03:00]} 3. Nc3 {[%clk 0:02:58]}  Nc6 {[%clk 0:03:00]} 4. Bb5 {[%clk 0:02:53]}  Nd4 {[%clk 0:02:59]} 5. Bc4 {[%clk 0:02:51]}  Bc5 {[%clk 0:02:46]} 6. d3 {[%clk 0:02:42]}  d6 {[%clk 0:02:41]} 7. h3 {[%clk 0:02:35]}  h6 {[%clk 0:02:40]} 8. O-O {[%clk 0:02:34]}  O-O {[%clk 0:02:39]} 9. a3 {[%clk 0:02:31]}  Be6 {[%clk 0:02:27]} 10. Bxe6 {[%clk 0:02:10]}  fxe6 {[%clk 0:02:26]} 11. Nxd4 {[%clk 0:02:09]}  Bxd4 {[%clk 0:02:23]} 12. Be3 {[%clk 0:02:06]}  Bxc3 {[%clk 0:02:08]} 13. bxc3 {[%clk 0:02:04]}  Qe8 {[%clk 0:02:09]} 14. c4 {[%clk 0:01:57]}  b6 {[%clk 0:02:08]} 15. f4 {[%clk 0:01:50]}  exf4 {[%clk 0:02:07]} 16. Rxf4 {[%clk 0:01:51]}  Qg6 {[%clk 0:02:06]} 17. Qe2 {[%clk 0:01:34]}  Nd7 {[%clk 0:01:55]} 18. Rg4 {[%clk 0:01:32]}  Qf6 {[%clk 0:01:55]} 19. d4 {[%clk 0:01:08]}  Kh7 {[%clk 0:01:51]} 20. Qd3 {[%clk 0:01:04]}  e5 {[%clk 0:01:43]} 21. c3 {[%clk 0:01:02]}  Rf7 {[%clk 0:01:38]} 22. Rf1 {[%clk 0:00:59]}  Qxf1+ {[%clk 0:01:37]} 23. Qxf1 {[%clk 0:01:00]}  Rxf1+ {[%clk 0:01:37]} 24. Kxf1 {[%clk 0:01:01]}  Rf8+ {[%clk 0:01:36]} 25. Ke2 {[%clk 0:01:00]}  Nf6 {[%clk 0:01:31]} 26. Rh4 {[%clk 0:00:59]}  Re8 {[%clk 0:01:26]} 27. Kd3 {[%clk 0:00:57]}  Kg6 {[%clk 0:01:22]} 28. a4 {[%clk 0:00:50]}  a5 {[%clk 0:01:19]} 29. Bd2 {[%clk 0:00:44]}  h5 {[%clk 0:01:01]} 30. Be3 {[%clk 0:00:33]}  Re7 {[%clk 0:00:56]} 31. Bc1 {[%clk 0:00:30]}  Rf7 {[%clk 0:00:50]} 32. g4 {[%clk 0:00:27]}  hxg4 {[%clk 0:00:48]} 33. hxg4 {[%clk 0:00:28]}  Nh7 {[%clk 0:00:33]} 34. Rh3 {[%clk 0:00:26]}  Rf1 {[%clk 0:00:32]} 35. Be3 {[%clk 0:00:26]}  Ra1 {[%clk 0:00:28]} 36. dxe5 {[%clk 0:00:19]}  dxe5 {[%clk 0:00:28]} 37. Rh5 {[%clk 0:00:20]}  Rxa4 {[%clk 0:00:26]} 38. Rxe5 {[%clk 0:00:19]}  Ra1 {[%clk 0:00:26]} 39. c5 {[%clk 0:00:17]}  b5 {[%clk 0:00:23]} 40. c6 {[%clk 0:00:17]}  b4 {[%clk 0:00:19]} 41. cxb4 {[%clk 0:00:16]}  axb4 {[%clk 0:00:19]} 42. Rb5 {[%clk 0:00:16]}  Ra3+ {[%clk 0:00:18]} 43. Ke2 {[%clk 0:00:15]}  Rc3 {[%clk 0:00:15]} 44. Bc5 {[%clk 0:00:11]}  Nf6 {[%clk 0:00:14]} 45. Bd4 {[%clk 0:00:06]}  Rxc6 {[%clk 0:00:12]} 46. Bxf6 {[%clk 0:00:06]}  gxf6 {[%clk 0:00:12]} 47. Rxb4 {[%clk 0:00:06]}  Kg5 {[%clk 0:00:12]} 48. Rb5+ {[%clk 0:00:03]}  Kxg4 {[%clk 0:00:12]} 49. Ke3 {[%clk 0:00:03]}  Rc1 {[%clk 0:00:10]} 50. Rb8 {[%clk 0:00:02]}  Re1+ {[%clk 0:00:09]} 51. Kd4 {[%clk 0:00:00]}  Kf4 {[%clk 0:00:09]} 0-1


[Site "https://www.chess.com"]

[Event "Titled Tuesday Blitz August 08 Early 2023"]
[White "Konenkin, Dmitry"]
[Black "Shohat, Yotam"]
[WhiteFideId "4185781"]
[BlackFideId "2813955"]
[WhiteElo "2297"]
[BlackElo "2478"]
[Result "0-1"]
[Round "4"]
[TimeControl "180+1"]
[Date "2023.08.08"]
[WhiteClock "0:00:55"]
[BlackClock "0:00:12"]
[Board "192"]

1. d4 {[%clk 0:03:00]}  Nf6 {[%clk 0:02:59]} 2. Bg5 {[%clk 0:03:00]}  d5 {[%clk 0:02:59]} 3. Nd2 {[%clk 0:03:00]}  Nbd7 {[%clk 0:02:56]} 4. Ngf3 {[%clk 0:03:00]}  e6 {[%clk 0:02:55]} 5. e3 {[%clk 0:03:00]}  h6 {[%clk 0:02:53]} 6. Bh4 {[%clk 0:03:00]}  c5 {[%clk 0:02:50]} 7. c3 {[%clk 0:02:59]}  Bd6 {[%clk 0:02:45]} 8. Bd3 {[%clk 0:03:00]}  Qc7 {[%clk 0:02:42]} 9. e4 {[%clk 0:02:46]}  dxe4 {[%clk 0:02:39]} 10. Nxe4 {[%clk 0:02:47]}  Nxe4 {[%clk 0:02:38]} 11. Bxe4 {[%clk 0:02:48]}  Nf6 {[%clk 0:02:31]} 12. Bxf6 {[%clk 0:02:42]}  gxf6 {[%clk 0:02:32]} 13. d5 {[%clk 0:02:34]}  Bd7 {[%clk 0:02:27]} 14. Qb3 {[%clk 0:02:28]}  O-O-O {[%clk 0:02:22]} 15. O-O-O {[%clk 0:02:28]}  f5 {[%clk 0:02:13]} 16. dxe6 {[%clk 0:02:11]}  Bxe6 {[%clk 0:01:46]} 17. Bd5 {[%clk 0:02:07]}  Bf4+ {[%clk 0:01:46]} 18. Kb1 {[%clk 0:02:06]}  Rxd5 {[%clk 0:01:34]} 19. Rxd5 {[%clk 0:02:06]}  c4 {[%clk 0:01:05]} 20. Qd1 {[%clk 0:02:03]}  Bxd5 {[%clk 0:00:49]} 21. Qxd5 {[%clk 0:02:04]}  Kb8 {[%clk 0:00:46]} 22. Qxf5 {[%clk 0:02:00]}  Rd8 {[%clk 0:00:43]} 23. Nd4 {[%clk 0:01:55]}  a6 {[%clk 0:00:36]} 24. Re1 {[%clk 0:01:45]}  Bg5 {[%clk 0:00:29]} 25. g3 {[%clk 0:01:41]}  Qb6 {[%clk 0:00:20]} 26. f4 {[%clk 0:01:32]}  Bf6 {[%clk 0:00:13]} 27. Nc2 {[%clk 0:01:12]}  Bxc3 {[%clk 0:00:12]} 28. b4 {[%clk 0:01:00]}  cxb3 {[%clk 0:00:13]} 29. axb3 {[%clk 0:00:55]}  Qxb3+ {[%clk 0:00:12]} 0-1


[Site "https://www.chess.com"]

[Event "Titled Tuesday Blitz August 08 Early 2023"]
[White "Sanhueza, Cristian"]
[Black "Jahnz, Fabian"]
[WhiteFideId "116815"]
[BlackFideId "4653300"]
[WhiteElo "2475"]
[BlackElo "2293"]
[Result "0-1"]
[Round "4"]
[TimeControl "180+1"]
[Date "2023.08.08"]
[WhiteClock "0:00:00"]
[BlackClock "0:00:10"]
[Board "196"]

1. e4 {[%clk 0:03:00]}  c6 {[%clk 0:03:00]} 2. d4 {[%clk 0:03:00]}  d5 {[%clk 0:03:01]} 3. exd5 {[%clk 0:03:01]}  cxd5 {[%clk 0:03:01]} 4. c4 {[%clk 0:03:02]}  Nf6 {[%clk 0:03:02]} 5. Nc3 {[%clk 0:03:03]}  Nc6 {[%clk 0:03:02]} 6. Bg5 {[%clk 0:03:03]}  Be6 {[%clk 0:03:02]} 7. Be2 {[%clk 0:03:03]}  Qa5 {[%clk 0:03:00]} 8. Bf3 {[%clk 0:03:03]}  Rd8 {[%clk 0:02:57]} 9. Ne2 {[%clk 0:03:02]}  h6 {[%clk 0:02:20]} 10. Bxf6 {[%clk 0:02:59]}  exf6 {[%clk 0:02:19]} 11. O-O {[%clk 0:02:58]}  Bb4 {[%clk 0:01:59]} 12. cxd5 {[%clk 0:02:53]}  Bxd5 {[%clk 0:01:59]} 13. Nxd5 {[%clk 0:02:48]}  Rxd5 {[%clk 0:01:59]} 14. Bxd5 {[%clk 0:02:47]}  Qxd5 {[%clk 0:02:00]} 15. Nc3 {[%clk 0:02:33]}  Qxd4 {[%clk 0:01:54]} 16. Re1+ {[%clk 0:02:34]}  Kf8 {[%clk 0:01:44]} 17. Qe2 {[%clk 0:02:34]}  Kg8 {[%clk 0:01:40]} 18. Rad1 {[%clk 0:02:30]}  Qh4 {[%clk 0:01:16]} 19. Qe8+ {[%clk 0:02:25]}  Kh7 {[%clk 0:01:16]} 20. Qxf7 {[%clk 0:02:20]}  Ne5 {[%clk 0:01:09]} 21. Rxe5 {[%clk 0:02:03]}  fxe5 {[%clk 0:01:04]} 22. Qf5+ {[%clk 0:02:04]}  Kg8 {[%clk 0:01:04]} 23. Ne4 {[%clk 0:01:34]}  Qe7 {[%clk 0:00:55]} 24. Rd7 {[%clk 0:01:30]}  Qf8 {[%clk 0:00:44]} 25. Qe6+ {[%clk 0:01:27]}  Kh7 {[%clk 0:00:43]} 26. Rf7 {[%clk 0:01:11]}  Qc8 {[%clk 0:00:30]} 27. Nf6+ {[%clk 0:00:24]}  Kg6 {[%clk 0:00:29]} 28. Nd7+ {[%clk 0:00:20]}  Kh7 {[%clk 0:00:23]} 29. Qf5+ {[%clk 0:00:16]}  Kg8 {[%clk 0:00:24]} 30. h4 {[%clk 0:00:11]}  Qc1+ {[%clk 0:00:23]} 31. Kh2 {[%clk 0:00:11]}  Qf4+ {[%clk 0:00:24]} 32. Qxf4 {[%clk 0:00:10]}  exf4 {[%clk 0:00:25]} 33. Ne5 {[%clk 0:00:06]}  Bd6 {[%clk 0:00:20]} 34. Rf5 {[%clk 0:00:06]}  Bxe5 {[%clk 0:00:20]} 35. Rxe5 {[%clk 0:00:07]}  Kf7 {[%clk 0:00:19]} 36. Rf5+ {[%clk 0:00:06]}  Ke6 {[%clk 0:00:17]} 37. Rxf4 {[%clk 0:00:07]}  Rc8 {[%clk 0:00:17]} 38. Re4+ {[%clk 0:00:06]}  Kd7 {[%clk 0:00:14]} 39. Re2 {[%clk 0:00:06]}  Rc4 {[%clk 0:00:14]} 40. g3 {[%clk 0:00:06]}  a5 {[%clk 0:00:13]} 41. Kg2 {[%clk 0:00:06]}  b5 {[%clk 0:00:13]} 42. Rd2+ {[%clk 0:00:06]}  Ke6 {[%clk 0:00:12]} 43. Kf3 {[%clk 0:00:07]}  b4 {[%clk 0:00:12]} 44. Re2+ {[%clk 0:00:03]}  Kd6 {[%clk 0:00:12]} 45. Rd2+ {[%clk 0:00:04]}  Ke6 {[%clk 0:00:12]} 46. g4 {[%clk 0:00:04]}  a4 {[%clk 0:00:12]} 47. Re2+ {[%clk 0:00:05]}  Kd6 {[%clk 0:00:12]} 48. Rd2+ {[%clk 0:00:05]}  Ke6 {[%clk 0:00:13]} 49. Kg3 {[%clk 0:00:05]}  g5 {[%clk 0:00:13]} 50. hxg5 {[%clk 0:00:04]}  hxg5 {[%clk 0:00:14]} 51. f3 {[%clk 0:00:03]}  Ke5 {[%clk 0:00:14]} 52. Re2+ {[%clk 0:00:01]}  Kd5 {[%clk 0:00:13]} 53. Rd2+ {[%clk 0:00:01]}  Ke5 {[%clk 0:00:14]} 54. Kf2 {[%clk 0:00:02]}  Rf4 {[%clk 0:00:11]} 55. b3 {[%clk 0:00:01]}  a3 {[%clk 0:00:11]} 56. Rc2 {[%clk 0:00:00]}  Rd4 {[%clk 0:00:10]} 0-1


[Site "https://www.chess.com"]

[Event "Titled Tuesday Blitz August 08 Early 2023"]
[White "Wong, Zhenyong Jayden"]
[Black "Herzog2012"]
[WhiteFideId "5821975"]
[WhiteElo "2248"]
[BlackElo "2463"]
[Result "1-0"]
[Round "4"]
[TimeControl "180+1"]
[Date "2023.08.08"]
[WhiteClock "0:00:10"]
[BlackClock "0:00:00"]
[Board "199"]

1. b3 {[%clk 0:03:00]}  e5 {[%clk 0:02:59]} 2. Bb2 {[%clk 0:03:00]}  Nc6 {[%clk 0:02:59]} 3. e3 {[%clk 0:03:00]}  Nf6 {[%clk 0:02:52]} 4. Nf3 {[%clk 0:03:01]}  Bd6 {[%clk 0:02:51]} 5. d4 {[%clk 0:03:00]}  e4 {[%clk 0:02:49]} 6. Nfd2 {[%clk 0:03:00]}  O-O {[%clk 0:02:47]} 7. c4 {[%clk 0:02:52]}  b6 {[%clk 0:02:37]} 8. Nc3 {[%clk 0:02:48]}  Re8 {[%clk 0:02:03]} 9. g4 {[%clk 0:02:48]}  h6 {[%clk 0:01:51]} 10. h4 {[%clk 0:02:46]}  g5 {[%clk 0:01:44]} 11. hxg5 {[%clk 0:02:43]}  hxg5 {[%clk 0:01:45]} 12. Bg2 {[%clk 0:02:43]}  Bb4 {[%clk 0:01:45]} 13. d5 {[%clk 0:01:18]}  Ne5 {[%clk 0:01:26]} 14. Ndxe4 {[%clk 0:01:18]}  d6 {[%clk 0:00:55]} 15. Nxg5 {[%clk 0:01:02]}  Nfxg4 {[%clk 0:00:40]} 16. Ne4 {[%clk 0:00:40]}  Bf5 {[%clk 0:00:39]} 17. Kf1 {[%clk 0:00:38]}  Bxe4 {[%clk 0:00:36]} 18. Nxe4 {[%clk 0:00:38]}  f5 {[%clk 0:00:29]} 19. Ng3 {[%clk 0:00:31]}  Qg5 {[%clk 0:00:23]} 20. Rh5 {[%clk 0:00:27]}  Nxe3+ {[%clk 0:00:22]} 21. Kg1 {[%clk 0:00:22]}  Qg6 {[%clk 0:00:07]} 22. Qc1 {[%clk 0:00:18]}  f4 {[%clk 0:00:05]} 23. fxe3 {[%clk 0:00:15]}  Qxg3 {[%clk 0:00:05]} 24. Bxe5 {[%clk 0:00:11]}  Rxe5 {[%clk 0:00:03]} 25. Rxe5 {[%clk 0:00:09]}  dxe5 {[%clk 0:00:04]} 26. Qf1 {[%clk 0:00:07]}  Bc5 {[%clk 0:00:04]} 27. Qf3 {[%clk 0:00:06]}  Bxe3+ {[%clk 0:00:04]} 28. Kf1 {[%clk 0:00:07]}  Qxf3+ {[%clk 0:00:03]} 29. Bxf3 {[%clk 0:00:07]}  Kf7 {[%clk 0:00:04]} 30. Ke2 {[%clk 0:00:08]}  Rh8 {[%clk 0:00:05]} 31. Rh1 {[%clk 0:00:08]}  Rg8 {[%clk 0:00:02]} 32. Rh7+ {[%clk 0:00:08]}  Kf6 {[%clk 0:00:03]} 33. Rxc7 {[%clk 0:00:08]}  Rg1 {[%clk 0:00:02]} 34. d6 {[%clk 0:00:07]}  Rg8 {[%clk 0:00:02]} 35. Rxa7 {[%clk 0:00:05]}  Rd8 {[%clk 0:00:02]} 36. Bd5 {[%clk 0:00:05]}  Rxd6 {[%clk 0:00:02]} 37. Kf3 {[%clk 0:00:06]}  Kf5 {[%clk 0:00:02]} 38. Rf7+ {[%clk 0:00:06]}  Kg5 {[%clk 0:00:02]} 39. b4 {[%clk 0:00:07]}  Rh6 {[%clk 0:00:02]} 40. Ke4 {[%clk 0:00:07]}  Rh1 {[%clk 0:00:02]} 41. Rf5+ {[%clk 0:00:07]}  Kg4 {[%clk 0:00:02]} 42. Rxe5 {[%clk 0:00:07]}  Re1 {[%clk 0:00:02]} 43. Be6+ {[%clk 0:00:07]}  Kg3 {[%clk 0:00:02]} 44. Kd3 {[%clk 0:00:07]}  Kf2 {[%clk 0:00:02]} 45. Bd5 {[%clk 0:00:06]}  Rd1+ {[%clk 0:00:03]} 46. Kc2 {[%clk 0:00:06]}  Rd4 {[%clk 0:00:03]} 47. a4 {[%clk 0:00:05]}  f3 {[%clk 0:00:03]} 48. Bxf3 {[%clk 0:00:06]}  Kxf3 {[%clk 0:00:03]} 49. Kb3 {[%clk 0:00:06]}  Rd3+ {[%clk 0:00:03]} 50. Kc2 {[%clk 0:00:06]}  Rd4 {[%clk 0:00:04]} 51. Kc3 {[%clk 0:00:06]}  Rd6 {[%clk 0:00:03]} 52. Re8 {[%clk 0:00:05]}  Bd4+ {[%clk 0:00:03]} 53. Kb3 {[%clk 0:00:06]}  Kf4 {[%clk 0:00:03]} 54. a5 {[%clk 0:00:05]}  bxa5 {[%clk 0:00:03]} 55. bxa5 {[%clk 0:00:06]}  Bc5 {[%clk 0:00:04]} 56. Ka4 {[%clk 0:00:07]}  Rd1 {[%clk 0:00:03]} 57. Kb5 {[%clk 0:00:07]}  Bd4 {[%clk 0:00:04]} 58. a6 {[%clk 0:00:07]}  Rb1+ {[%clk 0:00:04]} 59. Kc6 {[%clk 0:00:08]}  Rb6+ {[%clk 0:00:04]} 60. Kd5 {[%clk 0:00:08]}  Rxa6 {[%clk 0:00:03]} 61. Kxd4 {[%clk 0:00:08]}  Kf5 {[%clk 0:00:03]} 62. Kd5 {[%clk 0:00:07]}  Kf6 {[%clk 0:00:02]} 63. c5 {[%clk 0:00:08]}  Kf7 {[%clk 0:00:03]} 64. Re2 {[%clk 0:00:09]}  Ra3 {[%clk 0:00:02]} 65. c6 {[%clk 0:00:09]}  Rd3+ {[%clk 0:00:02]} 66. Kc5 {[%clk 0:00:09]}  Rc3+ {[%clk 0:00:03]} 67. Kd6 {[%clk 0:00:10]}  Rd3+ {[%clk 0:00:03]} 68. Kc7 {[%clk 0:00:10]}  Rc3 {[%clk 0:00:03]} 69. Kb7 {[%clk 0:00:10]}  Rb3+ {[%clk 0:00:04]} 70. Kc8 {[%clk 0:00:11]}  Rc3 {[%clk 0:00:04]} 71. c7 {[%clk 0:00:12]}  Rc4 {[%clk 0:00:03]} 72. Kd7 {[%clk 0:00:11]}  Rd4+ {[%clk 0:00:03]} 73. Kc6 {[%clk 0:00:12]}  Rc4+ {[%clk 0:00:04]} 74. Kd7 {[%clk 0:00:10]}  Rd4+ {[%clk 0:00:04]} 75. Kc8 {[%clk 0:00:11]}  Rd1 {[%clk 0:00:03]} 76. Rb2 {[%clk 0:00:10]}  Ke7 {[%clk 0:00:00]} 77. Kb8 {[%clk 0:00:10]} 1-0


[Site "https://www.chess.com"]

[Event "Titled Tuesday Blitz August 08 Early 2023"]
[White "Cagara, Paulina"]
[Black "Rozhkov, Viacheslav"]
[WhiteFideId "1124870"]
[BlackFideId "4181484"]
[WhiteElo "2240"]
[BlackElo "2463"]
[Result "1-0"]
[Round "4"]
[TimeControl "180+1"]
[Date "2023.08.08"]
[WhiteClock "0:00:33"]
[BlackClock "0:00:00"]
[Board "200"]

1. e4 {[%clk 0:03:00]}  c5 {[%clk 0:03:00]} 2. Nc3 {[%clk 0:02:58]}  Nc6 {[%clk 0:02:59]} 3. Bb5 {[%clk 0:02:58]}  e6 {[%clk 0:02:59]} 4. Bxc6 {[%clk 0:02:57]}  bxc6 {[%clk 0:02:59]} 5. d3 {[%clk 0:02:58]}  Ne7 {[%clk 0:02:58]} 6. f4 {[%clk 0:02:57]}  Ng6 {[%clk 0:02:57]} 7. Nf3 {[%clk 0:02:57]}  Be7 {[%clk 0:02:57]} 8. O-O {[%clk 0:02:56]}  O-O {[%clk 0:02:58]} 9. Qe1 {[%clk 0:02:53]}  d5 {[%clk 0:02:52]} 10. e5 {[%clk 0:02:53]}  f6 {[%clk 0:02:52]} 11. b3 {[%clk 0:02:47]}  fxe5 {[%clk 0:02:45]} 12. Nxe5 {[%clk 0:02:47]}  Nxe5 {[%clk 0:02:44]} 13. fxe5 {[%clk 0:02:42]}  Bd7 {[%clk 0:02:37]} 14. Na4 {[%clk 0:02:35]}  Qe8 {[%clk 0:02:26]} 15. Be3 {[%clk 0:02:27]}  d4 {[%clk 0:02:17]} 16. Bc1 {[%clk 0:02:25]}  Qh5 {[%clk 0:02:10]} 17. Rxf8+ {[%clk 0:02:16]}  Rxf8 {[%clk 0:02:08]} 18. Ba3 {[%clk 0:02:16]}  Bg5 {[%clk 0:01:57]} 19. Nxc5 {[%clk 0:02:13]}  Be3+ {[%clk 0:01:56]} 20. Kh1 {[%clk 0:02:12]}  Rf2 {[%clk 0:01:27]} 21. Ne4 {[%clk 0:01:48]}  Re2 {[%clk 0:01:19]} 22. Qg3 {[%clk 0:01:42]}  Qg6 {[%clk 0:00:49]} 23. Rf1 {[%clk 0:01:33]}  Bf2 {[%clk 0:00:26]} 24. Nxf2 {[%clk 0:01:21]}  Qxg3 {[%clk 0:00:26]} 25. hxg3 {[%clk 0:01:21]}  Rxc2 {[%clk 0:00:26]} 26. Ne4 {[%clk 0:01:19]}  h6 {[%clk 0:00:26]} 27. Nc5 {[%clk 0:01:08]}  Bc8 {[%clk 0:00:24]} 28. Ne4 {[%clk 0:01:05]}  Bd7 {[%clk 0:00:23]} 29. Rf8+ {[%clk 0:01:04]}  Kh7 {[%clk 0:00:23]} 30. Nc5 {[%clk 0:01:04]}  Rxa2 {[%clk 0:00:20]} 31. Bb4 {[%clk 0:01:01]}  a5 {[%clk 0:00:20]} 32. Bxa5 {[%clk 0:00:51]}  Rxa5 {[%clk 0:00:19]} 33. Nxd7 {[%clk 0:00:51]}  Rb5 {[%clk 0:00:20]} 34. Rc8 {[%clk 0:00:47]}  Rxb3 {[%clk 0:00:20]} 35. Nf8+ {[%clk 0:00:46]}  Kg8 {[%clk 0:00:19]} 36. Nxe6+ {[%clk 0:00:46]}  Kf7 {[%clk 0:00:19]} 37. Nxd4 {[%clk 0:00:46]}  Rxd3 {[%clk 0:00:19]} 38. Nxc6 {[%clk 0:00:45]}  Ke6 {[%clk 0:00:17]} 39. Kh2 {[%clk 0:00:44]}  h5 {[%clk 0:00:11]} 40. Rd8 {[%clk 0:00:39]}  Rc3 {[%clk 0:00:06]} 41. Rd6+ {[%clk 0:00:39]}  Kf5 {[%clk 0:00:00]} 42. e6 {[%clk 0:00:33]} 1-0


[Site "https://www.chess.com"]

[Event "Titled Tuesday Blitz August 08 Early 2023"]
[White "Luxama, Jacques Muller"]
[Black "AdvanceGuard4"]
[WhiteFideId "11900113"]
[WhiteElo "2210"]
[BlackElo "2459"]
[Result "0-1"]
[Round "4"]
[TimeControl "180+1"]
[Date "2023.08.08"]
[WhiteClock "0:00:23"]
[BlackClock "0:00:13"]
[Board "204"]

1. e4 {[%clk 0:02:59]}  c5 {[%clk 0:02:55]} 2. Nf3 {[%clk 0:02:59]}  Nf6 {[%clk 0:02:52]} 3. Nc3 {[%clk 0:02:51]}  d5 {[%clk 0:02:52]} 4. exd5 {[%clk 0:02:50]}  Nxd5 {[%clk 0:02:52]} 5. Bb5+ {[%clk 0:02:49]}  Bd7 {[%clk 0:02:50]} 6. Qe2 {[%clk 0:02:43]}  Nxc3 {[%clk 0:02:40]} 7. dxc3 {[%clk 0:02:44]}  Nc6 {[%clk 0:02:37]} 8. O-O {[%clk 0:02:43]}  g6 {[%clk 0:02:27]} 9. Rd1 {[%clk 0:02:42]}  Qc7 {[%clk 0:02:21]} 10. Bg5 {[%clk 0:02:39]}  a6 {[%clk 0:02:08]} 11. Bf6 {[%clk 0:02:34]}  Rg8 {[%clk 0:01:58]} 12. Bc4 {[%clk 0:02:26]}  Bg7 {[%clk 0:01:26]} 13. Bh4 {[%clk 0:02:16]}  b5 {[%clk 0:01:11]} 14. Bd5 {[%clk 0:02:11]}  Rd8 {[%clk 0:00:35]} 15. Re1 {[%clk 0:02:01]}  e6 {[%clk 0:00:25]} 16. Bxd8 {[%clk 0:01:59]}  Nxd8 {[%clk 0:00:26]} 17. a4 {[%clk 0:01:32]}  Kf8 {[%clk 0:00:18]} 18. axb5 {[%clk 0:01:23]}  axb5 {[%clk 0:00:19]} 19. Ba8 {[%clk 0:01:18]}  Bf6 {[%clk 0:00:17]} 20. c4 {[%clk 0:01:15]}  b4 {[%clk 0:00:16]} 21. Rad1 {[%clk 0:01:13]}  Kg7 {[%clk 0:00:13]} 22. Be4 {[%clk 0:01:10]}  Nc6 {[%clk 0:00:10]} 23. Bxc6 {[%clk 0:01:07]}  Bxc6 {[%clk 0:00:11]} 24. Ne5 {[%clk 0:01:06]}  Be8 {[%clk 0:00:06]} 25. f4 {[%clk 0:01:05]}  h6 {[%clk 0:00:06]} 26. Qd3 {[%clk 0:01:01]}  Bc6 {[%clk 0:00:06]} 27. Nxc6 {[%clk 0:01:00]}  Qxc6 {[%clk 0:00:06]} 28. Qd7 {[%clk 0:01:00]}  Qa6 {[%clk 0:00:05]} 29. b3 {[%clk 0:00:59]}  Rd8 {[%clk 0:00:05]} 30. Qc7 {[%clk 0:00:56]}  Rxd1 {[%clk 0:00:04]} 31. Rxd1 {[%clk 0:00:56]}  Bd4+ {[%clk 0:00:05]} 32. Kh1 {[%clk 0:00:53]}  Qa2 {[%clk 0:00:05]} 33. Qc6 {[%clk 0:00:47]}  Qxc2 {[%clk 0:00:05]} 34. Qf3 {[%clk 0:00:47]}  Bc3 {[%clk 0:00:04]} 35. h3 {[%clk 0:00:42]}  Qxb3 {[%clk 0:00:04]} 36. Rd7 {[%clk 0:00:40]}  Qxc4 {[%clk 0:00:04]} 37. Qb7 {[%clk 0:00:39]}  Qf1+ {[%clk 0:00:04]} 38. Kh2 {[%clk 0:00:39]}  Qxf4+ {[%clk 0:00:05]} 39. Kh1 {[%clk 0:00:37]}  Qf1+ {[%clk 0:00:04]} 40. Kh2 {[%clk 0:00:37]}  Be5+ {[%clk 0:00:05]} 41. g3 {[%clk 0:00:35]}  Qf2+ {[%clk 0:00:06]} 42. Qg2 {[%clk 0:00:35]}  Bxg3+ {[%clk 0:00:05]} 43. Kh1 {[%clk 0:00:35]}  Qxg2+ {[%clk 0:00:06]} 44. Kxg2 {[%clk 0:00:35]}  Be5 {[%clk 0:00:07]} 45. Kf3 {[%clk 0:00:34]}  Bd4 {[%clk 0:00:08]} 46. Ke4 {[%clk 0:00:33]}  Kf6 {[%clk 0:00:09]} 47. h4 {[%clk 0:00:33]}  g5 {[%clk 0:00:09]} 48. hxg5+ {[%clk 0:00:33]}  hxg5 {[%clk 0:00:10]} 49. Rb7 {[%clk 0:00:32]}  Kg6 {[%clk 0:00:10]} 50. Rb6 {[%clk 0:00:29]}  f5+ {[%clk 0:00:10]} 51. Kf3 {[%clk 0:00:29]}  Kf6 {[%clk 0:00:11]} 52. Ke2 {[%clk 0:00:29]}  Ke5 {[%clk 0:00:11]} 53. Kd3 {[%clk 0:00:29]}  g4 {[%clk 0:00:12]} 54. Kc4 {[%clk 0:00:28]}  g3 {[%clk 0:00:12]} 55. Rb8 {[%clk 0:00:28]}  g2 {[%clk 0:00:12]} 56. Rg8 {[%clk 0:00:27]}  g1=Q {[%clk 0:00:12]} 57. Rxg1 {[%clk 0:00:23]}  Bxg1 {[%clk 0:00:13]} 0-1


[Site "https://www.chess.com"]

[Event "Titled Tuesday Blitz August 08 Early 2023"]
[White "Preobrazhenska_D2011"]
[Black "Rios Escobar, Adan"]
[BlackFideId "3403645"]
[WhiteElo "2206"]
[BlackElo "2449"]
[Result "1-0"]
[Round "4"]
[TimeControl "180+1"]
[Date "2023.08.08"]
[WhiteClock "0:00:08"]
[BlackClock "0:00:01"]
[Board "205"]

1. e4 {[%clk 0:02:59]}  c5 {[%clk 0:02:58]} 2. Nf3 {[%clk 0:02:59]}  d6 {[%clk 0:02:57]} 3. d4 {[%clk 0:02:59]}  cxd4 {[%clk 0:02:57]} 4. Nxd4 {[%clk 0:02:59]}  Nf6 {[%clk 0:02:56]} 5. Nc3 {[%clk 0:03:00]}  a6 {[%clk 0:02:56]} 6. Bg5 {[%clk 0:02:59]}  Nbd7 {[%clk 0:02:56]} 7. f4 {[%clk 0:02:58]}  g6 {[%clk 0:02:56]} 8. Qf3 {[%clk 0:02:55]}  Bg7 {[%clk 0:02:54]} 9. O-O-O {[%clk 0:02:55]}  O-O {[%clk 0:02:53]} 10. g4 {[%clk 0:02:50]}  e5 {[%clk 0:02:52]} 11. Nb3 {[%clk 0:02:41]}  Qc7 {[%clk 0:02:44]} 12. f5 {[%clk 0:02:34]}  b5 {[%clk 0:02:23]} 13. Bxf6 {[%clk 0:02:20]}  Nxf6 {[%clk 0:02:20]} 14. g5 {[%clk 0:02:19]}  Nh5 {[%clk 0:02:08]} 15. f6 {[%clk 0:02:12]}  Bh8 {[%clk 0:02:04]} 16. Nd5 {[%clk 0:02:10]}  Ra7 {[%clk 0:01:46]} 17. Nxc7 {[%clk 0:02:09]}  Rxc7 {[%clk 0:01:47]} 18. Rxd6 {[%clk 0:02:07]}  Nf4 {[%clk 0:01:44]} 19. h4 {[%clk 0:01:59]}  Be6 {[%clk 0:01:36]} 20. h5 {[%clk 0:01:38]}  gxh5 {[%clk 0:01:33]} 21. Rxh5 {[%clk 0:01:33]}  Rfc8 {[%clk 0:01:23]} 22. Rh2 {[%clk 0:01:25]}  h6 {[%clk 0:01:12]} 23. Rhd2 {[%clk 0:01:13]}  hxg5 {[%clk 0:00:46]} 24. Rd8+ {[%clk 0:01:12]}  Kh7 {[%clk 0:00:46]} 25. Qh1+ {[%clk 0:01:10]}  Kg6 {[%clk 0:00:42]} 26. Qxh8 {[%clk 0:01:05]}  Nh5 {[%clk 0:00:29]} 27. Rg8+ {[%clk 0:00:55]}  Rxg8 {[%clk 0:00:27]} 28. Qxg8+ {[%clk 0:00:56]}  Kxf6 {[%clk 0:00:26]} 29. Qd8+ {[%clk 0:00:55]}  Re7 {[%clk 0:00:26]} 30. Nc5 {[%clk 0:00:52]}  Nf4 {[%clk 0:00:25]} 31. Rh2 {[%clk 0:00:47]}  Ng6 {[%clk 0:00:19]} 32. Rf2+ {[%clk 0:00:39]}  Kg7 {[%clk 0:00:19]} 33. Nxe6+ {[%clk 0:00:38]}  Rxe6 {[%clk 0:00:18]} 34. Qxg5 {[%clk 0:00:37]}  Kf8 {[%clk 0:00:13]} 35. Bh3 {[%clk 0:00:32]}  Rd6 {[%clk 0:00:12]} 36. Rf1 {[%clk 0:00:25]}  a5 {[%clk 0:00:08]} 37. Bf5 {[%clk 0:00:22]}  Nf4 {[%clk 0:00:07]} 38. Rh1 {[%clk 0:00:15]}  Ng6 {[%clk 0:00:02]} 39. Bxg6 {[%clk 0:00:12]}  fxg6 {[%clk 0:00:02]} 40. Rh8+ {[%clk 0:00:11]}  Kf7 {[%clk 0:00:02]} 41. Rh7+ {[%clk 0:00:11]}  Kg8 {[%clk 0:00:01]} 42. Qe7 {[%clk 0:00:09]}  Rd7 {[%clk 0:00:01]} 43. Qxd7 {[%clk 0:00:09]}  g5 {[%clk 0:00:01]} 44. Qg7# {[%clk 0:00:08]} 1-0


[Site "https://www.chess.com"]